[Event "Live Chess"]
[Site "Chess.com"]
[Date "2023.05.21"]
[Round "-"]
[White "CheckThis4"]
[Black "RockTroll"]
[Result "1-0"]
[WhiteElo "2509"]
[BlackElo "2233"]
[TimeControl "300"]
[EndTime "4:34:03 PDT"]
[Termination "CheckThis4 won by resignation"]

1. d4 {[%clk 0:04:58]} 1... d5 {[%clk 0:04:57.4]} 2. c4 {[%clk 0:04:54]} 2... e6
{[%clk 0:04:56.7]} 3. Nf3 {[%clk 0:04:52.2]} 3... Nf6 {[%clk 0:04:55.5]} 4. g3
{[%clk 0:04:51.4]} 4... Be7 {[%clk 0:04:54.9]} 5. Bg2 {[%clk 0:04:50]} 5... O-O
{[%clk 0:04:54.6]} 6. O-O {[%clk 0:04:48.4]} 6... dxc4 {[%clk 0:04:54.3]} 7. Qc2
{[%clk 0:04:43.8]} 7... b5 {[%clk 0:04:53.7]} 8. a4 {[%clk 0:04:41.6]} 8... Bb7
{[%clk 0:04:53]} 9. axb5 {[%clk 0:04:39.5]} 9... a6 {[%clk 0:04:52.5]} 10. bxa6
{[%clk 0:04:36.7]} 10... Nxa6 {[%clk 0:04:51.2]} 11. Qxc4 {[%clk 0:04:24.8]}
11... Bd5 {[%clk 0:04:46.5]} 12. Qc3 {[%clk 0:04:03.3]} 12... Ne4 {[%clk
0:04:22.3]} 13. Qe3 {[%clk 0:03:59]} 13... Nb4 {[%clk 0:04:16.4]} 14. Rxa8
{[%clk 0:03:55.7]} 14... Qxa8 {[%clk 0:04:16.3]} 15. Nc3 {[%clk 0:03:50.6]}
15... Nxc3 {[%clk 0:03:38.2]} 16. bxc3 {[%clk 0:03:50.5]} 16... Nc6 {[%clk
0:03:37.4]} 17. c4 {[%clk 0:03:31.7]} 17... Bxf3 {[%clk 0:03:07.1]} 18. Bxf3
{[%clk 0:03:29.6]} 18... Qa6 {[%clk 0:03:06.7]} 19. d5 {[%clk 0:03:22.1]} 19...
Nd8 {[%clk 0:03:01.4]} 20. Qd4 {[%clk 0:03:09.7]} 20... Bf6 {[%clk 0:02:55.9]}
21. Qc5 {[%clk 0:03:08.4]} 21... exd5 {[%clk 0:02:52.7]} 22. cxd5 {[%clk
0:03:07.1]} 22... Be5 {[%clk 0:02:41.9]} 23. Bf4 {[%clk 0:02:57]} 23... Bxf4
{[%clk 0:02:38.3]} 24. gxf4 {[%clk 0:02:56.9]} 24... Qg6+ {[%clk 0:02:15.5]} 25.
Bg2 {[%clk 0:02:55.2]} 25... Qf5 {[%clk 0:02:14.2]} 26. Qxc7 {[%clk 0:02:49.8]}
1-0

[Event "Live Chess"]
[Site "Chess.com"]
[Date "2023.05.21"]
[Round "-"]
[White "friarnator"]
[Black "gmnorfolk"]
[Result "0-1"]
[WhiteElo "2001"]
[BlackElo "2114"]
[TimeControl "300"]
[EndTime "4:34:06 PDT"]
[Termination "gmnorfolk won by resignation"]

1. d4 {[%clk 0:04:57.4]} 1... Nf6 {[%clk 0:04:56.9]} 2. Nc3 {[%clk 0:04:56.7]}
2... d5 {[%clk 0:04:55.2]} 3. Bf4 {[%clk 0:04:55.9]} 3... e6 {[%clk 0:04:53.2]}
4. e3 {[%clk 0:04:55.2]} 4... a6 {[%clk 0:04:50.3]} 5. g4 {[%clk 0:04:51.4]}
5... c5 {[%clk 0:04:46.9]} 6. g5 {[%clk 0:04:50.1]} 6... Nfd7 {[%clk 0:04:44.4]}
7. h4 {[%clk 0:04:49.2]} 7... Nc6 {[%clk 0:04:41.3]} 8. Nf3 {[%clk 0:04:40.7]}
8... Qb6 {[%clk 0:04:36.5]} 9. Na4 {[%clk 0:04:36.8]} 9... Qa5+ {[%clk
0:04:34.7]} 10. c3 {[%clk 0:04:36]} 10... cxd4 {[%clk 0:04:32.9]} 11. Nxd4
{[%clk 0:04:26.8]} 11... Nxd4 {[%clk 0:04:29.5]} 12. Qxd4 {[%clk 0:04:07.9]}
12... b5 {[%clk 0:04:26.7]} 13. b4 {[%clk 0:04:01.4]} 13... Qxa4 {[%clk
0:04:24.7]} 14. Be2 {[%clk 0:04:01]} 14... Qc2 {[%clk 0:04:11.2]} 15. Bd3 {[%clk
0:03:55]} 15... Qb2 {[%clk 0:04:02.3]} 16. Rb1 {[%clk 0:03:53.9]} 16... Qa3
{[%clk 0:03:55.9]} 17. O-O {[%clk 0:03:50.6]} 17... f6 {[%clk 0:03:44.2]} 18.
gxf6 {[%clk 0:03:48.1]} 18... gxf6 {[%clk 0:03:34.2]} 19. e4 {[%clk 0:03:35.3]}
19... e5 {[%clk 0:03:29.6]} 20. Qxd5 {[%clk 0:03:34.3]} 20... Rb8 {[%clk
0:03:20]} 21. Bc1 {[%clk 0:03:09.9]} 21... Qa4 {[%clk 0:03:10.5]} 22. Qe6+
{[%clk 0:02:57]} 22... Be7 {[%clk 0:03:01.5]} 23. Be2 {[%clk 0:02:55.9]} 23...
Qc2 {[%clk 0:02:42.5]} 24. Bh5+ {[%clk 0:02:41.6]} 24... Kd8 {[%clk 0:02:40.4]}
25. Be3 {[%clk 0:02:35.9]} 25... Qxe4 {[%clk 0:02:34.7]} 26. Rfd1 {[%clk
0:02:27.3]} 26... Qc4 {[%clk 0:02:24.5]} 27. Bb6+ {[%clk 0:01:50.1]} 27... Rxb6
{[%clk 0:02:14.1]} 28. Qxb6+ {[%clk 0:01:50]} 28... Qc7 {[%clk 0:02:11.1]} 29.
Qe3 {[%clk 0:01:37.1]} 29... Rg8+ {[%clk 0:02:07.4]} 30. Kf1 {[%clk 0:01:31.3]}
30... Qc4+ {[%clk 0:02:00.5]} 31. Be2 {[%clk 0:01:22.4]} 31... Qxh4 {[%clk
0:01:56.6]} 32. Rxd7+ {[%clk 0:01:01.6]} 32... Bxd7 {[%clk 0:01:49.2]} 33. Qb6+
{[%clk 0:01:00.9]} 33... Ke8 {[%clk 0:01:45.7]} 34. Qb8+ {[%clk 0:00:59.8]}
34... Kf7 {[%clk 0:01:42.6]} 35. Bf3 {[%clk 0:00:57.8]} 0-1

[Event "Live Chess"]
[Site "Chess.com"]
[Date "2023.05.21"]
[Round "-"]
[White "FlyingChessKestrel13"]
[Black "defenderalist"]
[Result "0-1"]
[WhiteElo "2070"]
[BlackElo "1667"]
[TimeControl "300"]
[EndTime "4:34:18 PDT"]
[Termination "defenderalist won by resignation"]

1. e4 {[%clk 0:04:58.1]} 1... c5 {[%clk 0:04:56.3]} 2. Nc3 {[%clk 0:04:56.2]}
2... Nc6 {[%clk 0:04:55.9]} 3. g3 {[%clk 0:04:54.9]} 3... e6 {[%clk 0:04:53]} 4.
Bg2 {[%clk 0:04:54]} 4... Nf6 {[%clk 0:04:50.5]} 5. Nge2 {[%clk 0:04:52.9]} 5...
d5 {[%clk 0:04:48.9]} 6. d3 {[%clk 0:04:51.3]} 6... Be7 {[%clk 0:04:46.2]} 7.
O-O {[%clk 0:04:49.8]} 7... O-O {[%clk 0:04:42.2]} 8. exd5 {[%clk 0:04:49]} 8...
exd5 {[%clk 0:04:40.9]} 9. Nf4 {[%clk 0:04:48]} 9... d4 {[%clk 0:04:38]} 10.
Ncd5 {[%clk 0:04:45.7]} 10... Be6 {[%clk 0:04:30.5]} 11. Nxe7+ {[%clk
0:04:43.8]} 11... Qxe7 {[%clk 0:04:26.5]} 12. Nxe6 {[%clk 0:04:42.7]} 12... fxe6
{[%clk 0:04:25.5]} 13. Re1 {[%clk 0:04:40.2]} 13... e5 {[%clk 0:04:21.2]} 14. f4
{[%clk 0:04:36.4]} 14... Qc7 {[%clk 0:04:08.1]} 15. fxe5 {[%clk 0:04:35.3]}
15... Nxe5 {[%clk 0:04:03.1]} 16. Bf4 {[%clk 0:04:34.7]} 16... Nfd7 {[%clk
0:03:59.6]} 17. Qh5 {[%clk 0:04:25.6]} 17... Rae8 {[%clk 0:03:56.1]} 18. Bd5+
{[%clk 0:04:19.5]} 18... Kh8 {[%clk 0:03:54]} 19. Be4 {[%clk 0:04:11.1]} 19...
h6 {[%clk 0:03:44.2]} 20. Bg6 {[%clk 0:03:38.4]} 20... Re6 {[%clk 0:03:13.2]}
21. Bf5 {[%clk 0:03:35.2]} 21... Ref6 {[%clk 0:02:57.2]} 22. Bxd7 {[%clk
0:03:33.2]} 22... Qxd7 {[%clk 0:02:43.2]} 23. Bxe5 {[%clk 0:03:30.2]} 23... Rf2
{[%clk 0:02:38.9]} 24. Qxh6+ {[%clk 0:03:21.1]} 24... Kg8 {[%clk 0:02:36.5]} 25.
Qg5 {[%clk 0:03:08.9]} 25... R8f5 {[%clk 0:02:26.8]} 26. Qg4 {[%clk 0:02:57.9]}
26... Rf1+ {[%clk 0:02:06.3]} 27. Rxf1 {[%clk 0:02:36.4]} 27... Rxf1+ {[%clk
0:02:05]} 28. Rxf1 {[%clk 0:02:36]} 28... Qxg4 {[%clk 0:02:03.9]} 29. Bf4 {[%clk
0:02:31.8]} 29... g5 {[%clk 0:02:01.7]} 30. Bc1 {[%clk 0:02:28]} 30... Qe2
{[%clk 0:01:54.6]} 31. Bxg5 {[%clk 0:02:22]} 31... Qxc2 {[%clk 0:01:52.1]} 32.
Be7 {[%clk 0:02:01.3]} 32... b6 {[%clk 0:01:44.4]} 33. Rf8+ {[%clk 0:01:55.8]}
33... Kg7 {[%clk 0:01:43.4]} 34. Ra8 {[%clk 0:01:54]} 34... Qc1+ {[%clk
0:01:36.5]} 35. Kg2 {[%clk 0:01:51]} 35... Qxb2+ {[%clk 0:01:35.9]} 36. Kh3
{[%clk 0:01:49.4]} 36... Qxa2 {[%clk 0:01:30.5]} 37. Rb8 {[%clk 0:01:47.8]} 0-1

[Event "Live Chess"]
[Site "Chess.com"]
[Date "2023.05.21"]
[Round "-"]
[White "JoshMcK"]
[Black "Long1968"]
[Result "1-0"]
[WhiteElo "1533"]
[BlackElo "959"]
[TimeControl "300"]
[EndTime "4:34:20 PDT"]
[Termination "JoshMcK won on time"]

1. e4 {[%clk 0:04:56.9]} 1... e6 {[%clk 0:04:57.1]} 2. d4 {[%clk 0:04:55.4]}
2... d5 {[%clk 0:04:53.1]} 3. Nc3 {[%clk 0:04:53.6]} 3... Bb4 {[%clk 0:04:48.7]}
4. e5 {[%clk 0:04:51.7]} 4... c5 {[%clk 0:04:46.2]} 5. a3 {[%clk 0:04:50.5]}
5... cxd4 {[%clk 0:04:42.4]} 6. Qxd4 {[%clk 0:04:47.1]} 6... Nc6 {[%clk
0:04:26.5]} 7. Bb5 {[%clk 0:04:43.7]} 7... Bd7 {[%clk 0:04:12.4]} 8. Bxc6 {[%clk
0:04:42]} 8... Bxc3+ {[%clk 0:04:07.6]} 9. Qxc3 {[%clk 0:04:38]} 9... bxc6
{[%clk 0:04:03.7]} 10. Nf3 {[%clk 0:04:36.9]} 10... Qc7 {[%clk 0:03:58.7]} 11.
O-O {[%clk 0:04:34.3]} 11... Ne7 {[%clk 0:03:54]} 12. Bg5 {[%clk 0:04:30.9]}
12... Ng6 {[%clk 0:03:49.3]} 13. b4 {[%clk 0:04:19.1]} 13... O-O {[%clk
0:03:36.6]} 14. Rfe1 {[%clk 0:04:14.2]} 14... f6 {[%clk 0:03:19.1]} 15. exf6
{[%clk 0:04:09.8]} 15... gxf6 {[%clk 0:03:16.1]} 16. Bxf6 {[%clk 0:04:08.9]}
16... Bc8 {[%clk 0:02:35.1]} 17. Be5 {[%clk 0:03:59.8]} 17... Qf7 {[%clk
0:02:23.4]} 18. Qxc6 {[%clk 0:03:51.3]} 18... Bd7 {[%clk 0:02:18.8]} 19. Qc3
{[%clk 0:03:48.4]} 19... Nxe5 {[%clk 0:02:09.4]} 20. Qxe5 {[%clk 0:03:45]} 20...
Rac8 {[%clk 0:02:00.9]} 21. Qg3+ {[%clk 0:03:35.2]} 21... Qg7 {[%clk 0:01:54.3]}
22. Qxg7+ {[%clk 0:03:30.8]} 22... Kxg7 {[%clk 0:01:51.8]} 23. Rac1 {[%clk
0:03:20.6]} 23... Rf4 {[%clk 0:01:34.1]} 24. Ne5 {[%clk 0:03:16]} 24... Ba4
{[%clk 0:01:24.8]} 25. c3 {[%clk 0:03:12.1]} 25... Re4 {[%clk 0:01:05.2]} 26.
Rxe4 {[%clk 0:03:06.6]} 26... dxe4 {[%clk 0:01:01.1]} 27. c4 {[%clk 0:03:01.9]}
27... Kf6 {[%clk 0:00:37.4]} 28. Ng4+ {[%clk 0:02:55.8]} 28... Ke7 {[%clk
0:00:32.6]} 29. c5 {[%clk 0:02:54.2]} 29... Bb5 {[%clk 0:00:16.4]} 30. Re1
{[%clk 0:02:48.9]} 30... Bd3 {[%clk 0:00:09.8]} 31. Ne5 {[%clk 0:02:42.1]} 31...
a5 {[%clk 0:00:00.9]} 32. Nxd3 {[%clk 0:02:38.5]} 1-0

[Event "Live Chess"]
[Site "Chess.com"]
[Date "2023.05.21"]
[Round "-"]
[White "Tushinskiy"]
[Black "DoYouLikeCurry"]
[Result "1-0"]
[WhiteElo "2210"]
[BlackElo "1426"]
[TimeControl "300"]
[EndTime "4:34:33 PDT"]
[Termination "Tushinskiy won by resignation"]

1. d4 {[%clk 0:04:58.2]} 1... d5 {[%clk 0:04:58.7]} 2. c3 {[%clk 0:04:58.1]}
2... Nf6 {[%clk 0:04:56.5]} 3. Nf3 {[%clk 0:04:58]} 3... c5 {[%clk 0:04:55.5]}
4. Bf4 {[%clk 0:04:57.9]} 4... e6 {[%clk 0:04:53.5]} 5. e3 {[%clk 0:04:56.6]}
5... cxd4 {[%clk 0:04:52.4]} 6. exd4 {[%clk 0:04:55.2]} 6... Nc6 {[%clk
0:04:51.7]} 7. Bd3 {[%clk 0:04:52.9]} 7... Qb6 {[%clk 0:04:50.3]} 8. Qe2 {[%clk
0:04:50.7]} 8... Bd7 {[%clk 0:04:48.7]} 9. O-O {[%clk 0:04:48.1]} 9... Be7
{[%clk 0:04:47]} 10. Ne5 {[%clk 0:04:45.9]} 10... Nxe5 {[%clk 0:04:43.5]} 11.
Bxe5 {[%clk 0:04:45.8]} 11... Rc8 {[%clk 0:04:41.4]} 12. h3 {[%clk 0:04:44.2]}
12... O-O {[%clk 0:04:39.9]} 13. Qc2 {[%clk 0:04:39.8]} 13... g6 {[%clk
0:04:30.9]} 14. Nd2 {[%clk 0:04:35.3]} 14... Bb5 {[%clk 0:04:28.7]} 15. Bxb5
{[%clk 0:04:31.3]} 15... Qxb5 {[%clk 0:04:28.6]} 16. Rae1 {[%clk 0:04:28.6]}
16... Kg7 {[%clk 0:04:13.5]} 17. Re3 {[%clk 0:04:21.5]} 17... Rfe8 {[%clk
0:04:05.1]} 18. Rf3 {[%clk 0:04:16.7]} 18... Rc6 {[%clk 0:03:57.5]} 19. Nb3
{[%clk 0:04:14.6]} 19... a5 {[%clk 0:03:47.4]} 20. Qd2 {[%clk 0:04:13.1]} 20...
h6 {[%clk 0:03:42.4]} 21. Qf4 {[%clk 0:04:06]} 21... g5 {[%clk 0:03:15.1]} 22.
Bxf6+ {[%clk 0:04:02.2]} 22... Bxf6 {[%clk 0:03:15]} 23. Qxf6+ {[%clk
0:04:01.2]} 1-0

[Event "Live Chess"]
[Site "Chess.com"]
[Date "2023.05.21"]
[Round "-"]
[White "Missedidea"]
[Black "YrrriKharkiv"]
[Result "0-1"]
[WhiteElo "1815"]
[BlackElo "2067"]
[TimeControl "300"]
[EndTime "4:34:34 PDT"]
[Termination "YrrriKharkiv won on time"]

1. d4 {[%clk 0:04:58.6]} 1... Nf6 {[%clk 0:04:57.9]} 2. c4 {[%clk 0:04:56.9]}
2... c5 {[%clk 0:04:56.3]} 3. d5 {[%clk 0:04:55.2]} 3... b5 {[%clk 0:04:55.5]}
4. cxb5 {[%clk 0:04:53.5]} 4... a6 {[%clk 0:04:53.7]} 5. bxa6 {[%clk 0:04:52.5]}
5... Bxa6 {[%clk 0:04:52.4]} 6. g3 {[%clk 0:04:48.6]} 6... g6 {[%clk 0:04:49.4]}
7. Bg2 {[%clk 0:04:46.7]} 7... d6 {[%clk 0:04:49.1]} 8. Nc3 {[%clk 0:04:45.6]}
8... Bg7 {[%clk 0:04:47.6]} 9. Rb1 {[%clk 0:04:40.4]} 9... O-O {[%clk
0:04:46.9]} 10. Nf3 {[%clk 0:04:38.2]} 10... Nbd7 {[%clk 0:04:41.3]} 11. O-O
{[%clk 0:04:36.3]} 11... Ng4 {[%clk 0:04:39.5]} 12. Qc2 {[%clk 0:04:32.9]} 12...
Nge5 {[%clk 0:04:34.7]} 13. Rd1 {[%clk 0:04:27.9]} 13... Nxf3+ {[%clk
0:04:30.7]} 14. exf3 {[%clk 0:04:16.4]} 14... c4 {[%clk 0:04:25.4]} 15. Be3
{[%clk 0:04:07.3]} 15... Ne5 {[%clk 0:04:18.1]} 16. f4 {[%clk 0:04:03]} 16...
Nd3 {[%clk 0:04:07.9]} 17. b3 {[%clk 0:03:56.3]} 17... Nb4 {[%clk 0:03:57.7]}
18. Qd2 {[%clk 0:03:48.7]} 18... cxb3 {[%clk 0:03:49.4]} 19. Rxb3 {[%clk
0:03:40.9]} 19... Nd3 {[%clk 0:03:15.3]} 20. Bf1 {[%clk 0:03:28]} 20... Nc5
{[%clk 0:03:13.4]} 21. Bxc5 {[%clk 0:03:25.4]} 21... Bxf1 {[%clk 0:03:11.6]} 22.
Bxd6 {[%clk 0:03:11.8]} 22... Bc4 {[%clk 0:02:41.6]} 23. Rb4 {[%clk 0:03:02]}
23... Qxd6 {[%clk 0:02:36.9]} 24. Rxc4 {[%clk 0:02:58.5]} 24... Qa6 {[%clk
0:02:29.5]} 25. Rc6 {[%clk 0:02:49.8]} 25... Qa5 {[%clk 0:02:27.8]} 26. Ne4
{[%clk 0:02:30.5]} 26... Qxa2 {[%clk 0:02:18.2]} 27. Rc2 {[%clk 0:02:15.1]}
27... Qa5 {[%clk 0:02:02.6]} 28. Qxa5 {[%clk 0:02:04.9]} 28... Rxa5 {[%clk
0:02:00.8]} 29. d6 {[%clk 0:02:03.1]} 29... exd6 {[%clk 0:01:58]} 30. Rxd6
{[%clk 0:01:59.4]} 30... Ra7 {[%clk 0:01:44.6]} 31. Rcd2 {[%clk 0:01:53.4]}
31... Re8 {[%clk 0:01:35.3]} 32. Ng5 {[%clk 0:01:50.1]} 32... h6 {[%clk
0:01:21.9]} 33. Nf3 {[%clk 0:01:48]} 33... Ra3 {[%clk 0:01:20.6]} 34. Kg2 {[%clk
0:01:45.9]} 34... Ra7 {[%clk 0:01:19.1]} 35. Rd8 {[%clk 0:01:41.2]} 35... Re7
{[%clk 0:01:18.3]} 36. Rxe8+ {[%clk 0:01:36.5]} 36... Rxe8 {[%clk 0:01:17.5]}
37. Rd7 {[%clk 0:01:34.8]} 37... Bf6 {[%clk 0:01:16.6]} 38. h4 {[%clk
0:01:32.3]} 38... Kg7 {[%clk 0:01:13.8]} 39. Nd4 {[%clk 0:01:26.1]} 39... Bxd4
{[%clk 0:01:08.4]} 40. Rxd4 {[%clk 0:01:24]} 40... Re7 {[%clk 0:01:08.1]} 41.
Kf3 {[%clk 0:01:22.7]} 41... Rc7 {[%clk 0:01:07]} 42. Kg4 {[%clk 0:01:16.5]}
42... h5+ {[%clk 0:01:04.5]} 43. Kf3 {[%clk 0:01:14.3]} 43... Rc3+ {[%clk
0:01:03.3]} 44. Ke2 {[%clk 0:01:10.2]} 44... Rc2+ {[%clk 0:01:02.7]} 45. Rd2
{[%clk 0:01:09.2]} 45... Rc7 {[%clk 0:01:02.1]} 46. Ke3 {[%clk 0:01:06.1]} 46...
Re7+ {[%clk 0:01:01.1]} 47. Kf3 {[%clk 0:01:03.7]} 47... Rc7 {[%clk 0:01:00.7]}
48. Rd3 {[%clk 0:01:02.1]} 48... Rb7 {[%clk 0:00:59.7]} 49. Ke4 {[%clk
0:00:57.1]} 49... Rb4+ {[%clk 0:00:58.5]} 50. Rd4 {[%clk 0:00:55.4]} 50... Rb5
{[%clk 0:00:58.1]} 51. f3 {[%clk 0:00:53.8]} 51... Ra5 {[%clk 0:00:56.8]} 52. g4
{[%clk 0:00:51.8]} 52... hxg4 {[%clk 0:00:55.2]} 53. fxg4 {[%clk 0:00:50]} 53...
Ra1 {[%clk 0:00:54]} 54. f5 {[%clk 0:00:43.8]} 54... Re1+ {[%clk 0:00:51.4]} 55.
Kf4 {[%clk 0:00:40.9]} 55... Rf1+ {[%clk 0:00:49.7]} 56. Ke5 {[%clk 0:00:38.4]}
56... Re1+ {[%clk 0:00:48]} 57. Re4 {[%clk 0:00:36.6]} 57... Rh1 {[%clk
0:00:46.1]} 58. h5 {[%clk 0:00:34.7]} 58... gxf5 {[%clk 0:00:43.7]} 59. Kxf5
{[%clk 0:00:32.7]} 59... Rf1+ {[%clk 0:00:42.9]} 60. Kg5 {[%clk 0:00:31]} 60...
Rf2 {[%clk 0:00:42.2]} 61. Rf4 {[%clk 0:00:29]} 61... Rb2 {[%clk 0:00:40.7]} 62.
Rf5 {[%clk 0:00:27.3]} 62... Rb6 {[%clk 0:00:38.5]} 63. h6+ {[%clk 0:00:24.2]}
63... Kg8 {[%clk 0:00:26.6]} 64. Kh5 {[%clk 0:00:19.5]} 64... Rb7 {[%clk
0:00:21.2]} 65. Rg5+ {[%clk 0:00:18]} 65... Kh8 {[%clk 0:00:19.5]} 66. Rg7
{[%clk 0:00:16.3]} 66... Rb5+ {[%clk 0:00:18.4]} 67. g5 {[%clk 0:00:15]} 67...
Rb7 {[%clk 0:00:18]} 68. Kg4 {[%clk 0:00:10.4]} 68... Rc7 {[%clk 0:00:14.1]} 69.
Kf5 {[%clk 0:00:09.1]} 69... Rb7 {[%clk 0:00:13.2]} 70. Kf6 {[%clk 0:00:08.3]}
70... Rc7 {[%clk 0:00:11.3]} 71. Rxf7 {[%clk 0:00:04.1]} 71... Rc6+ {[%clk
0:00:10.9]} 72. Ke7 {[%clk 0:00:02.3]} 72... Rc8 {[%clk 0:00:09.6]} 0-1

[Event "Live Chess"]
[Site "Chess.com"]
[Date "2023.05.21"]
[Round "-"]
[White "AbilifyXL"]
[Black "lord_cll"]
[Result "1-0"]
[WhiteElo "1947"]
[BlackElo "1196"]
[TimeControl "300"]
[EndTime "4:34:34 PDT"]
[Termination "AbilifyXL won on time"]

1. d4 {[%clk 0:04:57.4]} 1... Nf6 {[%clk 0:04:58.5]} 2. c4 {[%clk 0:04:56.6]}
2... g6 {[%clk 0:04:57.6]} 3. Nc3 {[%clk 0:04:55.7]} 3... Bg7 {[%clk 0:04:56.7]}
4. e4 {[%clk 0:04:51.8]} 4... d6 {[%clk 0:04:55.5]} 5. Be2 {[%clk 0:04:51.2]}
5... O-O {[%clk 0:04:53.2]} 6. Bg5 {[%clk 0:04:50.7]} 6... e5 {[%clk 0:04:39.4]}
7. dxe5 {[%clk 0:04:49.2]} 7... dxe5 {[%clk 0:04:38.3]} 8. Qxd8 {[%clk
0:04:47.9]} 8... Rxd8 {[%clk 0:04:38.2]} 9. Bxf6 {[%clk 0:04:47.1]} 9... Bxf6
{[%clk 0:04:36.9]} 10. Nd5 {[%clk 0:04:47]} 10... Nd7 {[%clk 0:03:39.6]} 11.
Nxc7 {[%clk 0:04:41]} 11... Rb8 {[%clk 0:03:37.7]} 12. Nd5 {[%clk 0:04:39.5]}
12... Bg7 {[%clk 0:03:34.6]} 13. Nf3 {[%clk 0:04:37.5]} 13... Nc5 {[%clk
0:03:19.9]} 14. Nd2 {[%clk 0:04:32.4]} 14... Be6 {[%clk 0:03:11.6]} 15. O-O
{[%clk 0:04:27.3]} 15... a6 {[%clk 0:02:46.6]} 16. Rad1 {[%clk 0:04:10.8]} 16...
b5 {[%clk 0:02:40.5]} 17. b4 {[%clk 0:04:03.8]} 17... Na4 {[%clk 0:02:27.7]} 18.
Ne7+ {[%clk 0:03:56.6]} 18... Kh8 {[%clk 0:02:22.8]} 19. Nc6 {[%clk 0:03:55.6]}
19... Nc3 {[%clk 0:02:05.7]} 20. Nxd8 {[%clk 0:03:41.8]} 20... Nxe2+ {[%clk
0:02:03.1]} 21. Kh1 {[%clk 0:03:40.7]} 21... Rxd8 {[%clk 0:02:01.4]} 22. cxb5
{[%clk 0:03:30.7]} 22... axb5 {[%clk 0:01:58]} 23. Nb3 {[%clk 0:03:26.4]} 23...
Ra8 {[%clk 0:01:27.9]} 24. Rd2 {[%clk 0:03:14.6]} 24... Bxb3 {[%clk 0:01:18.1]}
25. axb3 {[%clk 0:03:09.2]} 25... Nd4 {[%clk 0:01:16.8]} 26. Rfd1 {[%clk
0:03:02]} 26... h5 {[%clk 0:01:11.6]} 27. Rb2 {[%clk 0:02:57.3]} 27... Bf8
{[%clk 0:00:59.3]} 28. f4 {[%clk 0:02:50.2]} 28... f6 {[%clk 0:00:44.7]} 29.
fxe5 {[%clk 0:02:47]} 29... fxe5 {[%clk 0:00:43.2]} 30. h3 {[%clk 0:02:46.9]}
30... Bxb4 {[%clk 0:00:41.2]} 31. Rf1 {[%clk 0:02:39.3]} 31... Kg7 {[%clk
0:00:38.6]} 32. Rbf2 {[%clk 0:02:36.3]} 32... Rf8 {[%clk 0:00:31.9]} 33. Rxf8
{[%clk 0:02:32.6]} 33... Bxf8 {[%clk 0:00:30.4]} 34. Rb1 {[%clk 0:02:29.5]}
34... Nc2 {[%clk 0:00:25]} 35. Kh2 {[%clk 0:02:17.8]} 35... Nb4 {[%clk
0:00:18.8]} 36. Kg3 {[%clk 0:02:15.3]} 36... Nc6 {[%clk 0:00:16.4]} 37. Rc1
{[%clk 0:02:12.3]} 37... Nd4 {[%clk 0:00:15.2]} 38. Rc7+ {[%clk 0:02:02.7]}
38... Kf6 {[%clk 0:00:12.5]} 39. Rb7 {[%clk 0:02:01.7]} 39... Nxb3 {[%clk
0:00:10.6]} 40. Rxb5 {[%clk 0:02:00.5]} 40... Nd4 {[%clk 0:00:09.6]} 41. Rb6+
{[%clk 0:01:59.3]} 41... Kg7 {[%clk 0:00:07.4]} 42. h4 {[%clk 0:01:58.5]} 42...
Nc2 {[%clk 0:00:03]} 43. Rb7+ {[%clk 0:01:56.4]} 43... Kh6 {[%clk 0:00:01.5]}
44. Rc7 {[%clk 0:01:55]} 44... Nd4 {[%clk 0:00:01]} 45. Rf7 {[%clk 0:01:51.1]}
45... Ne6 {[%clk 0:00:00.6]} 46. Rf6 {[%clk 0:01:49]} 1-0